bitfinex/quotes_BTCUSD_20220405
["timestamp","ask_amount","ask_price","bid_price","bid_amount"]
[1649186690027,0.00158731,45836.0,45835.0,0.352214]
[1649186690279,0.00158731,45836.0,45832.0,0.01091]
[1649186690378,0.00158731,45836.0,45834.0,0.16465701]
[1649186690480,0.00158731,45836.0,45832.0,0.01091]
[1649186690582,0.00158731,45836.0,45830.0,0.01091]
[1649186690679,0.00158731,45836.0,45831.0,0.322214]
[1649186690782,0.00158731,45836.0,45832.0,0.322214]
[1649186690977,0.00158731,45836.0,45834.0,0.322214]
[1649186691278,0.00158731,45836.0,45835.0,0.01103611]
[1649186691383,0.00158731,45836.0,45835.0,0.33325011]
[1649186692027,0.00158731,45836.0,45835.0,0.38325011]
[1649186692362,0.00158731,45836.0,45835.0,0.60325011]
[1649186692512,0.00158731,45836.0,45835.0,0.592214]
[1649186692912,0.00158731,45836.0,45835.0,0.542214]
[1649186694118,0.00158731,45836.0,45835.0,0.642214]
[1649186695467,0.00053671,45838.0,45837.0,0.322214]
[1649186695567,0.30185737,45839.0,45837.0,0.322214]
[1649186695666,0.07203298,45839.0,45837.0,0.322214]
[1649186695867,0.00053671,45838.0,45837.0,0.322214]
[1649186696872,0.07203298,45839.0,45837.0,0.322214]
[1649186697275,0.07203298,45839.0,45837.0,0.376728]
[1649186697474,0.07203298,45839.0,45837.0,0.322214]
[1649186697574,0.07203298,45839.0,45837.0,0.376728]
[1649186698178,0.07203298,45839.0,45837.0,0.307214]
[1649186698328,0.07203298,45839.0,45837.0,0.37641]
[1649186698525,0.07203298,45839.0,45837.0,0.321896]
[1649186698723,0.00051593,45840.0,45839.0,0.02796702]
[1649186698827,0.00051593,45840.0,45839.0,0.34986302]
[1649186699226,0.03844451,45842.0,45839.0,0.34986302]
[1649186699325,0.03844451,45842.0,45840.0,0.26509945]
[1649186699425,0.03844451,45842.0,45841.0,0.321896]
[1649186701083,0.03844451,45842.0,45841.0,0.376409]
[1649186701183,0.03844451,45842.0,45841.0,0.39834981]
[1649186701384,0.03844451,45842.0,45841.0,0.44834981]
[1649186701484,0.03844451,45842.0,45841.0,0.49224981]
[1649186701886,0.03844451,45842.0,45841.0,0.59224981]
[1649186701985,0.03844451,45842.0,45841.0,0.90078675]
[1649186702181,0.03844451,45842.0,45841.0,0.59224981]
[1649186702583,0.03844451,45842.0,45841.0,0.53773681]
[1649186703034,0.03844451,45842.0,45841.0,0.43773681]
[1649186703339,0.03844451,45842.0,45841.0,0.38773681]
[1649186703549,0.03844451,45842.0,45841.0,0.36612307]
[1649186703550,0.03844451,45842.0,45839.0,0.02796702]
[1649186703645,0.03844451,45842.0,45840.0,0.321896]
[1649186704343,0.03844451,45842.0,45841.0,0.01103382]
[1649186704495,0.03844451,45842.0,45841.0,0.33292982]
[1649186705097,0.03844451,45842.0,45841.0,0.321896]
[1649186708979,0.34184672,45842.0,45841.0,0.321896]
[1649186709077,0.03844451,45842.0,45841.0,0.321896]
[1649186710088,0.03844451,45842.0,45839.0,0.02796702]
[1649186710685,0.04452698,45838.0,45836.0,0.0280432]
[1649186710885,0.04452698,45838.0,45837.0,0.321896]
[1649186712834,0.04452698,45838.0,45837.0,0.621896]
[1649186713134,0.04452698,45838.0,45837.0,0.332806]
[1649186713734,0.04452698,45838.0,45837.0,0.55041372]
[1649186713940,0.04452698,45838.0,45837.0,0.332806]
[1649186714138,0.04452698,45838.0,45837.0,0.321896]
[1649186714286,0.04452698,45838.0,45836.0,0.0280432]
[1649186714773,0.41240256,45838.0,45836.0,0.0280432]
[1649186714828,0.22868701,45837.0,45836.0,0.0280432]
[1649186715829,0.57993904,45837.0,45836.0,0.0280432]
[1649186715931,0.44332322,45846.0,45836.0,0.0280432]
[1649186716080,0.321896,45837.0,45836.0,0.0280432]
[1649186716181,0.01091,45840.0,45836.0,0.0280432]
[1649186716280,0.0439,45839.0,45836.0,0.0280432]
[1649186716380,0.17023026,45837.0,45836.0,0.0280432]
[1649186716982,1.6,45836.0,45835.0,4.32e-05]
[1649186717182,1.6439,45836.0,45835.0,4.32e-05]
[1649186717285,1.965796,45836.0,45835.0,4.32e-05]
[1649186717387,1.6439,45836.0,45835.0,4.32e-05]
[1649186717483,1.75481,45836.0,45835.0,4.32e-05]
[1649186718628,0.15481,45836.0,45835.0,4.32e-05]
[1649186719027,0.476706,45836.0,45835.0,4.32e-05]
[1649186719128,0.15481,45836.0,45835.0,4.32e-05]
[1649186719531,0.10481,45836.0,45835.0,4.32e-05]
[1649186719630,0.0439,45836.0,45835.0,4.32e-05]
[1649186719828,0.01091,45839.0,45835.0,4.32e-05]
[1649186719927,0.06091,45840.0,45835.0,4.32e-05]
[1649186720027,0.01091,45840.0,45835.0,4.32e-05]
[1649186720131,0.06091,45840.0,45835.0,4.32e-05]
[1649186720227,0.01091,45840.0,45835.0,4.32e-05]
[1649186720331,0.06091,45840.0,45835.0,4.32e-05]
[1649186720632,0.01091,45842.0,45835.0,4.32e-05]
[1649186720728,0.01091,45843.0,45835.0,4.32e-05]
[1649186720832,0.06091,45843.0,45835.0,4.32e-05]
[1649186720931,0.01091,45843.0,45835.0,4.32e-05]
[1649186721129,0.0939,45844.0,45835.0,4.32e-05]
[1649186721231,0.0939,45844.0,45836.0,0.00054197]
[1649186721730,0.24071728,45843.0,45836.0,0.00054197]
[1649186722280,0.24071728,45843.0,45835.0,4.32e-05]
[1649186722371,0.24071728,45843.0,45836.0,0.00052346]
[1649186722471,0.05,45844.0,45836.0,0.00052346]
[1649186722674,0.01091,45846.0,45836.0,0.00052346]
[1649186722772,0.20334452,45845.0,45836.0,0.00052346]
[1649186722873,0.01091,45846.0,45836.0,0.00052346]
[1649186723179,0.002,45847.0,45836.0,0.00052346]
[1649186723329,0.002,45847.0,45837.0,0.321896]
[1649186723425,0.002,45847.0,45838.0,0.3]
[1649186723629,0.002,45847.0,45839.0,0.332806]
[1649186723824,0.002,45847.0,45841.0,0.321896]
[1649186723927,0.002,45847.0,45843.0,0.321896]
[1649186724126,0.002,45847.0,45845.0,0.251263]
[1649186724229,0.0019568,45847.0,45846.0,0.01091]
[1649186724326,0.0019568,45847.0,45846.0,0.332806]
[1649186724426,0.0019568,45847.0,45846.0,0.321896]
[1649186724626,0.0019568,45847.0,45846.0,0.332806]
[1649186725478,0.0019568,45847.0,45846.0,0.321896]
[1649186726024,0.0019568,45847.0,45841.0,0.01091]
[1649186726123,0.0019568,45847.0,45844.0,0.00050406]
[1649186726572,0.0019568,45847.0,45845.0,0.321896]
[1649186726773,0.0019568,45847.0,45844.0,0.00050406]
[1649186727123,0.0019568,45847.0,45838.0,0.01091]
[1649186727225,0.0019568,45847.0,45828.0,0.6885]
[1649186727325,0.01091,45846.0,45843.0,0.00050406]
[1649186727423,0.332806,45846.0,45843.0,0.00050406]
[1649186727522,0.332806,45846.0,45845.0,0.00079375]
[1649186727727,0.365796,45846.0,45845.0,0.00079375]
[1649186728323,0.00309967,45829.0,45825.0,0.01091]
[1649186728526,0.00309967,45829.0,45826.0,0.321896]
[1649186728623,0.00309967,45829.0,45827.0,0.01091]
[1649186728727,0.00309967,45829.0,45828.0,0.321896]
[1649186728835,0.00309967,45829.0,45828.0,0.332806]
[1649186729427,0.00309967,45829.0,45828.0,0.632806]
[1649186729633,0.00309967,45829.0,45828.0,1.297606]
[1649186729885,0.00309967,45829.0,45828.0,1.397606]
[1649186730290,0.00309967,45829.0,45828.0,1.567606]
[1649186730386,0.00309967,45829.0,45828.0,1.5086403]
[1649186730739,9.67e-06,45829.0,45828.0,1.65770976]
[1649186730841,0.0019568,45847.0,45828.0,1.6334616]
[1649186730939,0.0019568,45847.0,45832.0,0.6648]
[1649186731037,0.0019568,45847.0,45833.0,0.632806]
[1649186731239,0.0019568,45847.0,45833.0,0.732806]
[1649186731838,0.0019568,45847.0,45842.0,0.321896]
[1649186732143,0.0019568,45847.0,45839.0,0.321896]
[1649186732546,0.0019568,45847.0,45838.0,0.0005054]
[1649186732847,0.227455,45839.0,45838.0,0.0005054]
[1649186732946,0.25012092,45839.0,45838.0,0.0005054]
[1649186733143,0.25012092,45839.0,45829.0,0.01091]
[1649186733243,0.25012092,45839.0,45830.0,0.321896]
[1649186733343,0.25012092,45839.0,45836.0,0.00050532]
[1649186733674,0.25012092,45839.0,45837.0,0.321896]
[1649186733777,0.25012092,45839.0,45836.0,0.00050532]
[1649186734077,0.25942749,45838.0,45836.0,0.00050532]
[1649186734377,0.25942749,45838.0,45832.0,0.321896]
[1649186734479,0.25942749,45838.0,45836.0,0.12]
[1649186734731,0.31397895,45838.0,45836.0,0.12]
[1649186735081,0.35787895,45838.0,45836.0,0.12]
[1649186735177,0.53555801,45838.0,45836.0,0.12]
[1649186735276,0.21160739,45835.0,45828.0,0.1]
[1649186735681,0.26828939,45830.0,45828.0,0.1]
[1649186736428,0.49659125,45830.0,45828.0,0.1]
[1649186736529,0.26828939,45830.0,45828.0,0.1]
[1649186736980,0.26822926,45830.0,45828.0,0.1]
[1649186737726,0.56849232,45830.0,45828.0,0.1]
[1649186737930,0.26822926,45830.0,45828.0,0.1]
[1649186738334,0.21160739,45835.0,45829.0,0.321896]
[1649186738480,0.21160739,45835.0,45828.0,0.1]
[1649186738878,0.21160739,45835.0,45829.0,0.321896]
[1649186739079,0.21160739,45835.0,45828.0,0.35077753]
[1649186739179,0.21160739,45835.0,45828.0,0.1]
[1649186739385,0.20660739,45835.0,45830.0,0.00050574]
[1649186739481,0.25619606,45831.0,45830.0,0.00050574]
[1649186739779,0.30009606,45831.0,45830.0,0.00050574]
[1649186740379,0.30009606,45831.0,45828.0,0.1]
[1649186740580,0.30009606,45831.0,45828.0,0.10050537]
[1649186741062,0.0439,45831.0,45828.0,0.10050537]
[1649186741550,0.0439,45831.0,45828.0,0.1]
[1649186741852,0.17050739,45835.0,45828.0,0.1]
[1649186741952,0.0439,45834.0,45828.0,0.1]
[1649186743005,0.0439,45834.0,45829.0,0.00047693]
[1649186743954,0.0439,45834.0,45828.0,0.37136501]
[1649186744153,0.0439,45834.0,45829.0,0.00049642]
[1649186744506,0.17050739,45835.0,45829.0,0.00049642]
[1649186745131,0.17050739,45835.0,45828.0,0.1]
[1649186745231,0.17050739,45835.0,45828.0,0.40940041]
[1649186745332,0.17050739,45835.0,45830.0,0.00049641]
[1649186746332,0.17050739,45835.0,45828.0,0.1]
[1649186746531,0.17050739,45835.0,45830.0,0.0005211]
[1649186747586,0.17050739,45835.0,45828.0,0.37926632]
[1649186747787,0.17050739,45835.0,45830.0,0.00050129]
[1649186748785,0.17050739,45835.0,45828.0,0.1]
[1649186748983,0.17050739,45835.0,45830.0,0.00050129]
[1649186749134,0.24856605,45832.0,45830.0,0.00050129]
[1649186749934,0.24856605,45832.0,45828.0,0.1]
[1649186750136,0.24856605,45832.0,45829.0,0.00046933]
[1649186751237,0.24856605,45832.0,45828.0,0.1]
[1649186751336,0.24856605,45832.0,45828.0,0.10046983]
[1649186751539,0.05111,45831.0,45828.0,0.10046983]
[1649186751638,0.41985358,45830.0,45828.0,0.10046983]
[1649186751739,0.01091,45829.0,45828.0,0.10046983]
[1649186751838,0.05111,45829.0,45828.0,0.10046983]
[1649186752378,0.29760555,45829.0,45828.0,0.1]
[1649186752479,0.50122137,45829.0,45828.0,0.1]
[1649186752677,1.6,45828.0,45826.0,0.00046985]
[1649186752782,0.01091,45827.0,45826.0,0.00046985]
[1649186752881,0.25111,45827.0,45826.0,0.00046985]
[1649186753029,0.42878906,45827.0,45826.0,0.00046985]
[1649186753132,0.25111,45827.0,45826.0,0.00046985]
[1649186753232,0.82878906,45827.0,45826.0,0.00046985]
[1649186753332,0.65111,45827.0,45826.0,0.00046985]
[1649186753628,0.65111,45827.0,45814.0,0.28421674]
[1649186753731,0.65111,45827.0,45805.0,0.01092]
[1649186753833,0.39076745,45824.0,45805.0,0.01092]
[1649186753930,0.3,45826.0,45808.0,0.2065985]
[1649186754042,0.0402,45823.0,45808.0,0.2065985]
[1649186754130,0.06091,45822.0,45808.0,0.2065985]
[1649186754329,0.0402,45821.0,45808.0,0.2065985]
[1649186754882,0.0402,45821.0,45818.0,0.26043933]
[1649186754982,0.0402,45821.0,45812.0,0.00025625]
[1649186755080,0.0402,45821.0,45813.0,0.054551]
[1649186756026,0.0402,45821.0,45818.0,0.25786099]
[1649186756177,0.0402,45821.0,45815.0,0.00025624]
[1649186757078,0.0402,45821.0,45819.0,0.22924989]
[1649186757281,0.0402,45821.0,45813.0,0.054551]
[1649186757428,0.0402,45821.0,45816.0,0.00050794]
[1649186758434,0.0402,45821.0,45819.0,0.24632038]
[1649186758529,0.22954321,45817.0,45813.0,0.054551]
[1649186758631,0.22954321,45817.0,45816.0,0.00052566]
[1649186759585,0.22954321,45817.0,45815.0,0.01091]
[1649186759832,0.22954321,45817.0,45814.0,0.00052567]
[1649186759934,0.22954321,45817.0,45815.0,0.01091]
[1649186760087,0.22954321,45817.0,45814.0,0.00052567]
[1649186760484,0.29507887,45816.0,45814.0,0.00052567]
[1649186760584,0.57220916,45815.0,45814.0,0.00052567]
[1649186760882,0.27220916,45815.0,45806.0,0.24405305]
[1649186760985,0.57220916,45815.0,45800.0,0.01092]
[1649186761083,0.57220916,45815.0,45812.0,0.00052568]
[1649186761184,0.27220916,45815.0,45812.0,0.00052568]
[1649186761387,0.22954321,45817.0,45812.0,0.00052568]
[1649186761833,0.22954321,45817.0,45812.0,0.05507768]
[1649186762033,0.22954321,45817.0,45812.0,0.054552]
[1649186762133,0.22954321,45817.0,45813.0,0.321991]
[1649186762433,0.22954321,45817.0,45816.0,0.59136675]
[1649186762636,0.22954321,45817.0,45816.0,0.321991]
[1649186763037,0.22954321,45817.0,45813.0,0.321991]
[1649186763550,0.22954321,45817.0,45813.0,0.32249601]
[1649186763849,0.22954321,45817.0,45813.0,0.00050501]
[1649186764497,0.22954321,45817.0,45804.0,0.321991]
[1649186764599,0.22954321,45817.0,45805.0,0.332911]
[1649186764702,0.22954321,45817.0,45813.0,0.00050501]
[1649186765703,0.22954321,45817.0,45802.0,0.01092]
[1649186765704,0.0402,45816.0,45802.0,0.01092]
[1649186765900,0.0402,45816.0,45813.0,0.00050641]
[1649186766251,0.28802462,45815.0,45813.0,0.00050641]
[1649186766450,0.42812462,45815.0,45813.0,0.00050641]
[1649186766551,0.321991,45814.0,45813.0,0.00050641]
[1649186766850,0.321991,45814.0,45801.0,0.31092]
[1649186766951,0.42812462,45815.0,45801.0,0.01092]
[1649186767050,0.25572934,45809.0,45801.0,0.01092]
[1649186767153,0.25572934,45809.0,45800.0,0.05]
[1649186767788,0.25572934,45809.0,45804.0,0.27471391]
[1649186768240,0.05458168,45812.0,45804.0,0.27522036]
[1649186768541,0.321991,45814.0,45804.0,0.27522036]
[1649186768645,0.43903462,45815.0,45804.0,0.27522036]
[1649186768741,0.42812462,45815.0,45804.0,0.27522036]
[1649186768840,0.32822462,45815.0,45804.0,0.27522036]
[1649186768995,0.0402,45815.0,45805.0,0.3]
[1649186769241,0.0402,45815.0,45804.0,0.27471391]
[1649186769344,0.0402,45815.0,45805.0,0.29294121]
[1649186769443,0.0402,45815.0,45808.0,0.00050715]
[1649186770046,0.28951505,45814.0,45808.0,0.00050715]
[1649186770246,0.01091,45816.0,45808.0,0.00050715]
[1649186770445,0.01091,45816.0,45805.0,0.59294121]
[1649186770646,0.01091,45816.0,45810.0,0.00025545]
[1649186770746,0.321991,45815.0,45810.0,0.00025545]
[1649186771351,0.26514165,45814.0,45810.0,0.00025545]
[1649186771703,0.26514165,45814.0,45805.0,0.59294121]
[1649186771803,0.26514165,45814.0,45805.0,0.29294121]
[1649186771911,0.26514165,45814.0,45810.0,0.00025545]
[1649186772003,0.01091,45816.0,45810.0,0.00025545]
[1649186772705,0.321991,45815.0,45810.0,0.00025545]
[1649186772809,0.321991,45814.0,45810.0,0.00025545]
[1649186772909,0.05,45815.0,45797.0,0.01092]
[1649186773009,0.0402,45813.0,45797.0,0.01092]
[1649186773108,0.29832887,45814.0,45811.0,0.00052618]
[1649186773206,0.0402,45812.0,45811.0,0.00052618]
[1649186773606,0.655447,45812.0,45811.0,0.00052618]
[1649186773710,0.97285086,45812.0,45811.0,0.00052618]
[1649186773807,1.02285086,45812.0,45811.0,0.00052618]
[1649186773908,0.70085986,45812.0,45811.0,0.00052618]
[1649186774007,1.04107105,45812.0,45811.0,0.00052618]
[1649186774108,0.98648709,45812.0,45796.0,0.01]
[1649186774209,0.01091,45811.0,45796.0,0.01]
[1649186774307,0.24783,45800.0,45797.0,0.321991]
[1649186774507,0.0402,45810.0,45797.0,0.321991]
[1649186774610,0.0402,45810.0,45796.0,0.01]
[1649186774940,0.22053948,45804.0,45799.0,0.321991]
[1649186775042,0.36091,45811.0,45799.0,0.321991]
[1649186775138,0.0402,45806.0,45798.0,0.21955567]
[1649186775238,0.0402,45806.0,45799.0,0.321991]
[1649186775490,0.0402,45806.0,45803.0,0.00052622]
[1649186776042,0.30479736,45806.0,45803.0,0.00052622]
[1649186776541,0.30479736,45806.0,45799.0,0.321991]
[1649186776642,0.30479736,45806.0,45802.0,0.0005059]
[1649186776742,0.0402,45806.0,45802.0,0.0005059]
[1649186777692,0.0402,45806.0,45798.0,0.21955567]
[1649186777843,0.0402,45806.0,45802.0,0.0005059]
[1649186777944,0.22560906,45808.0,45802.0,0.0005059]
[1649186778043,0.01091,45811.0,45802.0,0.0005059]
[1649186778243,0.01091,45812.0,45802.0,0.0005059]
[1649186778548,0.05111,45813.0,45803.0,0.321991]
[1649186778648,0.01091,45814.0,45803.0,0.321991]
[1649186778898,0.23806591,45814.0,45808.0,0.22667522]
[1649186779000,0.01091,45816.0,45808.0,0.22667522]
[1649186779199,0.01079735,45816.0,45808.0,0.22667522]
[1649186779500,0.22954321,45817.0,45809.0,0.321991]
[1649186779650,0.22954321,45817.0,45808.0,0.22667522]
[1649186780351,0.22954321,45817.0,45810.0,0.00050683]
[1649186780852,0.52140619,45817.0,45810.0,0.00050683]
[1649186781353,0.52140619,45817.0,45802.0,0.321991]
[1649186781452,0.3,45816.0,45803.0,0.01092]
[1649186781553,0.3,45816.0,45811.0,0.00050683]
[1649186781653,0.52140619,45817.0,45811.0,0.00050683]
[1649186782298,0.3,45816.0,45811.0,0.00050683]
[1649186782500,0.3,45816.0,45801.0,0.01092]
[1649186782697,0.31573427,45815.0,45811.0,0.00050683]
[1649186782800,2.5361967,45815.0,45811.0,0.00050683]
[1649186783249,0.054587,45812.0,45811.0,0.00050683]
[1649186783349,0.46375967,45812.0,45811.0,0.00050683]
[1649186783749,0.46375967,45812.0,45801.0,0.01092]
[1649186784349,0.321991,45811.0,45801.0,0.01092]
[1649186784450,0.321991,45811.0,45799.0,0.25429805]
[1649186784451,0.27112664,45804.0,45799.0,0.25429805]
[1649186784550,0.054591,45808.0,45803.0,0.00032741]
[1649186784650,0.40917267,45812.0,45799.0,0.25429805]
[1649186784800,0.44937267,45812.0,45799.0,0.25429805]
[1649186784901,0.22639564,45805.0,45799.0,0.25429805]
[1649186785006,0.22639564,45805.0,45804.0,0.00032741]
[1649186785199,0.39478667,45812.0,45804.0,0.00032741]
[1649186785301,0.321991,45811.0,45799.0,0.25429805]
[1649186785399,0.39478667,45812.0,45799.0,0.25429805]
[1649186785501,0.3402,45812.0,45799.0,0.25429805]
[1649186785599,0.29475199,45809.0,45799.0,0.25429805]
[1649186785749,0.3402,45812.0,45799.0,0.25429805]
[1649186785853,0.0402,45812.0,45799.0,0.25429805]
[1649186786186,0.29972294,45808.0,45799.0,0.25429805]
[1649186787490,0.29972294,45808.0,45801.0,0.00054303]
[1649186787591,0.0402,45812.0,45801.0,0.00054303]
[1649186788547,0.0402,45812.0,45799.0,0.25429805]
[1649186788648,0.0402,45812.0,45797.0,0.01092]
[1649186788649,0.29645039,45807.0,45797.0,0.01092]
[1649186788747,0.29645039,45807.0,45804.0,0.00054301]
[1649186788950,0.00108602,45801.0,45798.0,0.321991]
[1649186789050,0.00108602,45801.0,45800.0,0.00032741]
[1649186789698,0.00108602,45801.0,45800.0,0.30659193]
[1649186789813,0.00108602,45801.0,45800.0,0.62858293]
[1649186790111,0.00108602,45801.0,45800.0,0.62358293]
[1649186790210,0.00108602,45801.0,45800.0,0.62391034]
[1649186791612,0.00108602,45801.0,45800.0,0.80769051]
[1649186792814,0.00108602,45801.0,45800.0,0.81861051]
[1649186794494,0.00108602,45801.0,45800.0,0.80769051]
[1649186795802,0.00108602,45801.0,45800.0,0.62391034]
[1649186797203,0.00108602,45801.0,45800.0,0.63483034]
[1649186797341,0.00108602,45801.0,45800.0,0.79549206]
[1649186798192,0.00108602,45801.0,45800.0,1.02752498]
[1649186799093,0.00108602,45801.0,45800.0,0.49390013]
[1649186799200,0.00108602,45801.0,45800.0,0.32231841]
[1649186799696,0.00108602,45801.0,45800.0,0.00032741]
[1649186799948,0.00108602,45801.0,45800.0,0.32231841]
[1649186800947,5.31e-06,45801.0,45800.0,0.32231841]
[1649186802301,5.31e-06,45801.0,45800.0,0.00032741]
[1649186807230,5.31e-06,45801.0,45800.0,0.01124741]
[1649186807333,5.31e-06,45801.0,45800.0,0.33323841]
[1649186807431,5.31e-06,45801.0,45800.0,0.6475747]
[1649186807630,5.31e-06,45801.0,45800.0,0.64724729]
[1649186807729,5.31e-06,45801.0,45800.0,0.6475746]
[1649186812313,5.31e-06,45801.0,45800.0,0.99068615]
[1649186812409,5.31e-06,45801.0,45800.0,1.01552527]
[1649186812760,5.31e-06,45801.0,45800.0,1.11122066]
[1649186813164,5.31e-06,45801.0,45800.0,1.01519796]
[1649186813262,5.31e-06,45801.0,45800.0,1.0154162]
[1649186813362,5.31e-06,45801.0,45800.0,0.99057708]
[1649186813464,5.31e-06,45801.0,45800.0,0.80838553]
[1649186815063,5.31e-06,45801.0,45800.0,0.75838553]
[1649186815515,5.31e-06,45801.0,45800.0,0.80208553]
[1649186819167,5.31e-06,45801.0,45800.0,0.98717396]
[1649186819370,5.31e-06,45801.0,45800.0,1.95197396]
[1649186819471,5.31e-06,45801.0,45800.0,2.08132744]
[1649186819568,0.00210279,45818.0,45800.0,2.08132744]
[1649186819668,0.00210279,45818.0,45806.0,0.6648]
[1649186819826,0.00210279,45818.0,45811.0,0.01103719]
[1649186819919,0.17746846,45828.0,45812.0,0.332901]
[1649186820016,0.002,45830.0,45816.0,0.33303067]
[1649186820017,0.18056846,45829.0,45816.0,0.33303067]
[1649186820118,0.0031,45829.0,45816.0,0.33303067]
[1649186820318,0.00210296,45818.0,45816.0,0.33303067]
[1649186820419,0.00210296,45818.0,45816.0,0.77993153]
[1649186821021,0.00210296,45818.0,45816.0,0.79084153]
[1649186821118,0.0031,45829.0,45816.0,1.19084153]
[1649186821218,0.0031,45829.0,45816.0,1.24538053]
[1649186821418,0.00050763,45822.0,45816.0,1.28908053]
[1649186821918,0.00050763,45822.0,45816.0,1.28907957]
[1649186822020,0.00050763,45822.0,45816.0,1.61415902]
[1649186822218,0.00203037,45826.0,45816.0,1.61415902]
[1649186822319,0.0031,45829.0,45816.0,1.71415902]
[1649186822421,0.0031,45829.0,45816.0,1.71415806]
[1649186822519,0.00050763,45822.0,45816.0,1.71415806]
[1649186822721,0.00050763,45822.0,45816.0,2.37895806]
[1649186822972,0.00203037,45826.0,45821.0,0.6648]
[1649186823070,0.00203037,45826.0,45823.0,0.6648]
[1649186823172,3.037e-05,45826.0,45825.0,0.986793]
[1649186823270,3.037e-05,45826.0,45825.0,1.406757]
[1649186823371,3.037e-05,45826.0,45825.0,1.51779275]
[1649186823549,3.037e-05,45826.0,45825.0,1.85723002]
[1649186823606,0.0031,45829.0,45825.0,1.55723002]
[1649186823754,0.0031,45829.0,45828.0,0.01103575]
[1649186823856,0.0031,45829.0,45828.0,0.33302875]
[1649186823957,0.0031,45829.0,45828.0,0.38763875]
[1649186824054,0.0031,45829.0,45828.0,0.37672875]
[1649186824158,0.0031,45829.0,45828.0,0.365693]
[1649186824253,0.09901256,45827.0,45824.0,0.242494]
[1649186824359,0.09901256,45827.0,45826.0,0.08464374]
[1649186824455,0.09901256,45827.0,45826.0,0.40657974]
[1649186826309,0.09875063,45827.0,45826.0,0.40657974]
[1649186826812,0.09875063,45827.0,45826.0,0.70657974]
[1649186827829,0.00364528,45829.0,45826.0,0.70657974]
[1649186827929,0.0032806,45840.0,45828.0,0.09601291]
[1649186828032,0.0032806,45840.0,45829.0,0.57821048]
[1649186828130,0.0032806,45840.0,45831.0,0.163548]
[1649186828235,0.0032806,45840.0,45832.0,0.632796]
[1649186828378,0.0011,45840.0,45832.0,0.776496]
[1649186828481,0.0011,45840.0,45832.0,0.97367466]
[1649186828582,0.0011,45840.0,45833.0,0.24517837]
[1649186828680,0.0011,45840.0,45837.0,0.3328803]
[1649186828781,0.0011,45840.0,45837.0,0.4437903]
[1649186828984,0.0011,45840.0,45837.0,0.98965743]
[1649186829684,0.0011,45840.0,45837.0,1.65445743]
[1649186829685,0.0001,45840.0,45837.0,1.65445743]
[1649186829788,0.0001,45840.0,45838.0,0.01091]
[1649186829881,0.0001,45840.0,45839.0,0.242425]
[1649186829982,0.0001,45840.0,45839.0,1.22916738]
[1649186830083,0.0001,45840.0,45839.0,1.32286738]
[1649186830183,0.0001,45840.0,45839.0,1.42286738]
[1649186830788,0.0001,45840.0,45839.0,0.75806738]
[1649186833218,0.0001,45840.0,45839.0,1.42286738]
[1649186834419,0.004,45842.0,45841.0,0.6648]
[1649186834518,0.004,45842.0,45841.0,1.297529]
[1649186834622,0.006,45856.0,45841.0,1.45225873]
[1649186834798,0.00054619,45842.0,45841.0,1.41181473]
[1649186834852,0.00054619,45842.0,45841.0,1.64292514]
[1649186834952,0.00218445,45849.0,45843.0,0.6648]
[1649186835054,0.00218445,45849.0,45846.0,0.01102913]
[1649186835153,0.006,45856.0,45847.0,1.90422098]
[1649186835255,0.004,45861.0,45853.0,1.6]
[1649186835355,0.004,45861.0,45854.0,0.354499]
[1649186835456,0.004,45861.0,45854.0,0.92928795]
[1649186835555,0.004,45861.0,45859.0,0.01102913]
[1649186835654,0.004,45861.0,45860.0,0.242176]
[1649186835759,0.004,45861.0,45860.0,0.25320513]
[1649186835856,0.004,45861.0,45860.0,0.0437]
[1649186835956,0.26638688,45861.0,45860.0,0.0437]
[1649186836056,0.26638688,45861.0,45856.0,0.0109]
[1649186836156,0.26638688,45861.0,45856.0,0.3]
[1649186836254,0.004,45861.0,45856.0,0.3]
[1649186836355,0.004,45861.0,45857.0,0.321936]
[1649186837057,0.00424014,45861.0,45857.0,0.321936]
[1649186837956,0.004,45861.0,45857.0,0.321936]
[1649186838357,0.00424014,45861.0,45857.0,0.321936]
[1649186838901,0.00424014,45861.0,45858.0,0.01336146]
[1649186839000,0.00424014,45861.0,45859.0,0.242065]
[1649186839201,0.004,45861.0,45859.0,0.242065]
[1649186839806,0.004,45861.0,45860.0,0.621913]
[1649186841106,0.004,45861.0,45860.0,1.29774225]
[1649186841207,0.004,45861.0,45860.0,1.01952913]
[1649186841307,0.004,45861.0,45860.0,1.34146513]
[1649186841606,0.004,45861.0,45860.0,1.35236513]
[1649186842007,0.004,45861.0,45860.0,1.45236513]
[1649186842207,0.00392087,45861.0,45860.0,1.45236513]
[1649186843511,0.00392087,45861.0,45860.0,0.78756513]
[1649186843610,0.00392087,45861.0,45860.0,1.45236513]
[1649186843712,0.00392087,45861.0,45860.0,0.78756513]
[1649186844562,0.00392087,45861.0,45860.0,1.45236513]
[1649186845568,0.0416405,45862.0,45860.0,1.45236513]
[1649186845666,0.0416405,45862.0,45861.0,1.30277908]
[1649186845766,0.0416405,45862.0,45861.0,1.31367908]
[1649186845917,0.0376405,45862.0,45861.0,1.45737908]
[1649186846067,0.0031,45866.0,45864.0,0.67889715]
[1649186846164,0.0031,45866.0,45865.0,1.2976]
[1649186846263,0.0109,45884.0,45867.0,0.6648]
[1649186846365,0.9645086,45888.0,45868.0,0.9757]
[1649186846468,0.00438114,45870.0,45868.0,1.43685542]
[1649186846562,0.00438114,45870.0,45868.0,1.53685542]
[1649186846961,0.00368614,45870.0,45869.0,1.206782]
[1649186847064,0.00368614,45870.0,45869.0,1.31326142]
[1649186847163,0.00368614,45870.0,45869.0,1.45696142]
[1649186847312,0.2915,45888.0,45871.0,0.6648]
[1649186847417,0.2915,45888.0,45871.0,1.286654]
[1649186847517,0.2915,45888.0,45871.0,1.52595946]
[1649186847615,0.0382645,45889.0,45871.0,1.53683342]
[1649186847714,0.0382645,45889.0,45872.0,1.30234242]
[1649186847817,0.0382645,45889.0,45872.0,1.41324242]
[1649186847915,0.03383245,45881.0,45876.0,0.6648]
[1649186848015,0.03383245,45881.0,45878.0,0.6648]
[1649186848166,0.03383245,45881.0,45880.0,0.6648]
[1649186848264,0.03383245,45881.0,45880.0,1.29126822]
[1649186848416,0.03383245,45881.0,45880.0,1.64965088]
[1649186848819,0.02783648,45881.0,45880.0,1.64965088]
[1649186849120,0.02571827,45882.0,45881.0,2.58658]
[1649186849216,0.02571827,45882.0,45881.0,2.59748]
[1649186849319,0.02571827,45882.0,45881.0,2.79305942]